bitfinex/quotes_ETHUSD_20250604
["timestamp","ask_amount","ask_price","bid_price","bid_amount"]
[1749016461167,0.55,2624.8,2624.5,8.217]
[1749016461470,0.55,2624.6,2624.5,8.217]
[1749016461769,0.55,2624.6,2624.5,16.065]
[1749016461967,3.1085488,2624.9,2624.5,16.065]
[1749016463571,3.1085488,2624.9,2624.5,9.838]
[1749016463864,3.1085488,2624.9,2624.6,6.227]
[1749016465871,0.55,2625.3,2624.6,6.227]
[1749016466072,2.5585488,2625.4,2624.6,6.227]
[1749016466378,4.67,2625.3,2624.6,6.227]
[1749016466559,0.55,2625.2,2624.6,6.227]
[1749016466764,4.67,2625.3,2624.6,6.227]
[1749016467284,0.55,2625.2,2624.6,6.227]
[1749016467661,7.2285488,2625.3,2624.6,6.227]
[1749016467864,0.55,2625.2,2624.6,6.227]
[1749016470009,0.55,2625.2,2624.5,9.838]
[1749016470205,0.55,2625.0,2624.5,8.217]
[1749016470511,0.55,2624.8,2624.6,7.847]
[1749016471108,0.55,2624.8,2624.5,8.217]
[1749016471401,0.55,2624.8,2624.7,7.847]
[1749016471813,5.22,2624.8,2624.7,7.847]
[1749016472220,5.22,2624.8,2624.5,8.217]
[1749016472527,0.55,2624.6,2624.5,8.217]
[1749016472738,0.55,2624.6,2624.5,16.064]
[1749016484741,0.55,2624.7,2624.5,16.064]
[1749016485350,0.55,2624.7,2624.6,6.225]
[1749016487533,0.55,2625.2,2624.6,6.225]
[1749016487839,3.8193488,2625.3,2624.6,6.225]
[1749016487840,0.55,2625.0,2624.6,6.225]
[1749016490055,0.55,2625.2,2624.6,6.225]
[1749016492654,5.22,2625.2,2624.6,6.225]
[1749016494257,5.22,2625.2,2624.7,6.223]
[1749016495876,0.55,2624.8,2624.5,8.217]
[1749016496179,0.55,2624.8,2624.6,7.842]
[1749016497235,0.55,2625.0,2624.6,7.842]
[1749016498563,0.55,2624.8,2624.6,7.842]
[1749016501377,5.22,2624.8,2624.6,7.842]
[1749016505052,5.22,2624.8,2624.7,8.218]
[1749016505852,5.22,2624.8,2624.7,14.44]
[1749016506594,5.22,2624.8,2624.7,9.837]
[1749016506795,5.99785488,2624.8,2624.7,9.837]
[1749016507868,5.99785488,2624.8,2624.7,16.059]
[1749016509782,5.99785488,2624.8,2624.7,9.837]
[1749016509979,5.99785488,2624.8,2624.7,8.218]
[1749016510299,5.99785488,2624.8,2624.7,16.056]
[1749016510466,1.32785488,2624.8,2624.7,16.056]
[1749016511757,2.55845488,2624.8,2624.7,9.835]
[1749016511977,2.55845488,2624.8,2624.7,16.056]
[1749016512189,2.55845488,2624.8,2624.7,9.835]
[1749016512655,2.55845488,2624.8,2624.7,16.056]
[1749016513082,2.55845488,2624.8,2624.7,8.218]
[1749016513268,2.55845488,2624.8,2624.7,16.056]
[1749016516263,2.55845488,2624.8,2624.7,9.835]
[1749016517096,2.55845488,2624.8,2624.7,1.617]
[1749016517665,3.7891488,2624.8,2624.7,1.617]
[1749016517863,1.2306,2624.8,2624.7,1.617]
[1749016518073,3.7891488,2624.8,2624.7,1.617]
[1749016518395,0.55,2624.7,2624.2,8.219]
[1749016518597,0.55,2624.4,2624.3,1.617]
[1749016519090,0.55,2624.4,2624.3,7.838]
[1749016525737,1.2306,2624.8,2624.3,7.838]
[1749016525738,0.55,2624.7,2624.3,7.838]
[1749016526796,0.57,2624.9,2624.4,9.837]
[1749016527006,3.1285488,2624.9,2624.5,1.617]
[1749016528031,3.1285488,2624.9,2624.6,6.22]
[1749016528247,0.55,2624.7,2624.6,6.22]
[1749016531440,0.55,2624.7,2624.5,1.617]
[1749016531630,0.55,2624.7,2624.6,6.22]
[1749016534047,5.22,2624.7,2624.6,6.22]
[1749016539349,5.22,2624.7,2624.5,1.617]
[1749016539566,5.22,2624.7,2624.6,6.218]
[1749016542297,5.22,2624.7,2624.5,1.617]
[1749016542582,5.22,2624.7,2624.6,6.218]
[1749016554798,5.22,2624.7,2624.5,1.617]
[1749016555003,5.22,2624.7,2624.6,6.216]
[1749016556998,5.22,2624.7,2624.6,14.434]
[1749016565610,0.02,2624.9,2624.6,14.434]
[1749016566677,0.02,2624.9,2624.7,1.615]
[1749016567608,0.02,2624.9,2624.6,8.218]
[1749016567810,3.1085488,2624.8,2624.6,8.218]
[1749016568109,3.1085488,2624.8,2624.7,7.829]
[1749016568308,3.1085488,2624.8,2624.6,8.218]
[1749016568487,2.24891488,2624.7,2624.6,8.218]
[1749016568688,2.24891488,2624.7,2624.6,16.044]
[1749016569633,6.91891488,2624.7,2624.6,16.044]
[1749016570117,6.91891488,2624.7,2624.6,8.218]
[1749016570427,6.91891488,2624.7,2624.6,16.044]
[1749016571031,6.91891488,2624.7,2624.6,9.83]
[1749016571636,6.91891488,2624.7,2624.6,16.044]
[1749016571833,6.91891488,2624.7,2624.6,8.218]
[1749016572001,6.91891488,2624.7,2624.6,16.044]
[1749016576631,6.91891488,2624.7,2624.6,8.218]
[1749016576824,6.91891488,2624.7,2624.6,16.044]
[1749016577539,1.2314,2624.3,2622.3,2.5585488]
[1749016577851,0.55,2623.4,2623.2,8.219]
[1749016578058,0.55,2623.6,2623.3,7.826]
[1749016579242,0.55,2623.4,2623.3,1.613]
[1749016579441,0.55,2623.4,2623.3,7.827]
[1749016580559,0.55,2623.4,2623.3,1.613]
[1749016580760,0.55,2623.4,2623.3,7.826]
[1749016580962,0.55,2623.4,2623.3,1.613]
[1749016581143,0.55,2623.4,2623.3,7.827]
[1749016581862,0.55,2623.4,2623.3,1.613]
[1749016582167,0.55,2623.4,2623.3,7.827]
[1749016583628,1.2152,2623.7,2623.3,7.827]
[1749016583835,0.55,2623.6,2623.3,7.827]
[1749016584935,0.55,2623.6,2623.4,9.834]
[1749016586167,0.55,2623.6,2623.5,6.214]
[1749016587337,5.22,2623.6,2623.5,6.214]
[1749016590191,5.22,2623.6,2623.4,9.834]
[1749016590408,1.7,2623.5,2623.4,8.221]
[1749016590712,1.7,2623.5,2623.4,16.048]
[1749016593290,6.37,2623.5,2623.4,16.048]
[1749016593687,6.37,2623.5,2623.4,9.834]
[1749016593891,6.37,2623.5,2623.4,16.048]
[1749016594088,0.55,2623.4,2623.2,8.222]
[1749016594258,0.55,2623.4,2623.3,1.613]
[1749016595292,0.55,2623.4,2623.3,7.827]
[1749016595475,0.55,2623.4,2623.3,1.613]
[1749016595683,0.55,2623.4,2623.3,7.827]
[1749016599099,5.22,2623.4,2623.3,7.827]
[1749016599323,5.22,2623.4,2623.3,1.611]
[1749016600424,5.22,2623.4,2623.3,7.825]
[1749016620795,7.30021488,2623.4,2623.2,8.223]
[1749016621084,7.30021488,2623.4,2623.3,7.823]
[1749016626391,7.30021488,2623.4,2623.3,1.611]
[1749016626694,7.30021488,2623.4,2623.3,7.822]
[1749016633717,7.30021488,2623.4,2623.3,1.611]
[1749016633923,7.30021488,2623.4,2623.3,7.821]
[1749016634128,7.30021488,2623.4,2623.3,1.611]
[1749016635633,8.67186368,2623.4,2623.3,1.609]
[1749016635987,9.89776368,2623.4,2623.3,1.609]
[1749016637697,0.02,2622.9,2622.7,8.223]
[1749016637939,0.02,2622.9,2622.8,1.609]
[1749016638141,0.02,2622.9,2622.8,7.819]
[1749016640549,8.9123488,2622.9,2622.8,1.609]
[1749016640864,6.3538,2622.9,2622.8,1.609]
[1749016641082,7.24503488,2622.9,2622.8,1.609]
[1749016642267,0.55,2622.6,2622.1,6.21]
[1749016642459,5.58123488,2622.9,2622.1,6.21]
[1749016642460,3.1085488,2622.2,2622.1,6.21]
[1749016643916,0.55,2622.2,2622.1,6.21]
[1749016645351,0.55,2622.2,2622.1,7.819]
[1749016648027,4.67,2622.5,2622.1,7.819]
[1749016648226,0.55,2622.4,2622.1,7.819]
[1749016650025,3.1085488,2622.4,2622.2,7.82]
[1749016650479,3.1085488,2622.4,2622.2,1.61]
[1749016650787,3.1085488,2622.4,2622.3,6.21]
[1749016651578,0.55,2622.4,2622.3,6.21]
[1749016662584,0.55,2622.4,2622.3,1.608]
[1749016663386,1.32785488,2622.4,2622.3,1.608]
[1749016664381,7.08395488,2622.4,2622.3,7.817]
[1749016666174,7.08395488,2622.4,2622.3,1.608]
[1749016667396,7.08395488,2622.4,2622.3,7.817]
[1749016667691,7.08395488,2622.4,2622.3,1.608]
[1749016667877,7.08395488,2622.4,2622.3,7.817]
[1749016669188,5.99785488,2622.4,2622.3,7.817]
[1749016670088,5.22,2622.4,2622.3,7.817]
[1749016673998,5.22,2622.4,2622.3,1.608]
[1749016674308,5.22,2622.4,2622.3,7.817]
[1749016677015,5.22,2622.4,2622.3,7.816]
[1749016681014,5.22,2622.4,2622.1,8.226]
[1749016681224,0.55,2622.2,2622.1,8.226]
[1749016681395,0.55,2622.2,2622.1,16.042]
[1749016681920,5.22,2622.2,2622.1,16.042]
[1749016690933,5.22,2622.2,2622.1,9.834]
[1749016691145,5.22,2622.2,2622.1,16.041]
[1749016692145,5.22,2622.2,2622.1,16.039]
[1749016692351,6.11287488,2622.2,2622.1,16.039]
[1749016693934,5.22,2622.2,2622.1,16.039]
[1749016704351,5.22,2622.2,2622.1,16.038]
[1749016707658,4.67,2622.2,2622.1,16.038]
[1749016711796,5.22,2622.6,2622.1,16.038]
[1749016717671,5.22,2622.6,2622.2,1.606]
[1749016717974,6.11153488,2622.6,2622.2,1.606]
[1749016718196,8.67008368,2622.6,2622.2,1.606]
[1749016718363,0.2,2622.2,2621.3,10.0]
[1749016718571,0.2,2622.2,2621.5,10.0]
[1749016719450,0.2,2622.2,2621.6,6.205]
[1749016719650,0.2,2622.2,2621.7,10.0]
[1749016719956,0.2,2622.2,2621.8,10.0]
[1749016720167,0.2,2622.2,2621.7,10.0]
[1749016720768,0.2,2622.2,2621.8,10.0]
[1749016721511,0.2,2622.2,2621.8,3.471487]
[1749016721658,0.2,2622.2,2621.8,2.119977]
[1749016722786,0.2,2622.2,2621.8,10.0]
[1749016723193,0.2,2622.2,2621.7,10.0]
[1749016723498,0.2,2622.2,2621.8,10.0]
[1749016723669,0.2,2622.2,2621.7,10.0]
[1749016724075,0.2,2622.2,2621.8,10.0]
[1749016724608,0.2,2622.2,2621.7,10.0]
[1749016725069,0.2,2622.2,2621.8,6.204]
[1749016727305,0.2,2622.2,2621.6,10.0]
[1749016727535,0.2,2622.2,2621.9,7.809]
[1749016729578,0.2,2622.2,2622.0,8.226]
[1749016730416,0.2,2622.2,2622.1,9.831]
[1749016731522,0.2,2622.2,2622.1,16.035]
[1749016731834,0.75,2622.2,2622.1,16.035]
[1749016737432,0.75,2622.2,2622.1,8.226]
[1749016737634,0.75,2622.2,2622.1,16.034]
[1749016744946,0.94427,2622.2,2622.1,16.033]
[1749016745526,2.13827,2622.2,2622.1,16.033]
[1749016748715,0.94427,2622.2,2622.1,16.033]
[1749016750014,5.61427,2622.2,2622.1,16.033]
[1749016755665,5.06427,2622.2,2622.1,16.033]
[1749016756955,4.87,2622.2,2622.1,16.033]
[1749016757665,4.67,2622.2,2622.1,18.714298]
[1749016759679,4.87,2622.2,2622.1,18.714298]
[1749016761881,0.2,2622.2,2622.1,18.714298]
[1749016762981,0.2,2622.4,2622.1,18.714298]
[1749016763281,0.2,2622.4,2622.1,16.033]
[1749016763675,0.2,2622.2,2622.1,20.74773]
[1749016765275,0.2,2622.4,2622.1,16.033]
[1749016766389,1.1983,2622.6,2622.1,16.033]
[1749016766390,0.2,2622.2,2622.1,20.709984]
[1749016766587,0.2,2622.5,2622.1,20.709984]
[1749016766783,0.2,2622.2,2622.1,20.709984]
[1749016767090,0.2,2622.3,2622.1,16.033]
[1749016768992,0.2,2622.5,2622.1,16.033]
[1749016770690,0.2,2622.5,2622.3,6.284554]
[1749016771295,0.2,2622.5,2622.3,3.764554]
[1749016771458,0.2,2622.5,2622.3,2.346754]
[1749016771656,0.2,2622.5,2622.3,10.0]
[1749016772383,0.2,2622.5,2622.2,10.0]
[1749016772767,0.2,2622.5,2622.3,10.0]
[1749016773094,0.2,2622.5,2622.2,10.0]
[1749016773283,0.2,2622.5,2622.3,16.199]
[1749016773486,0.2,2622.5,2622.3,6.199]
[1749016774787,0.2,2622.5,2622.4,1.603]
[1749016776377,0.2,2622.5,2622.4,7.801]
[1749016779625,0.2,2622.5,2622.4,16.026]
[1749016800708,4.67,2622.7,2622.6,10.0]
[1749016800907,0.2,2622.8,2622.6,3.645776]
[1749016801121,0.02,2622.9,2622.6,3.645776]
[1749016801810,0.02,2622.9,2622.4,8.225]
[1749016802014,0.00033982,2622.9,2622.7,10.0]
[1749016802221,0.00033982,2622.9,2622.6,10.0]
[1749016802425,0.00033982,2622.9,2622.7,10.0]
[1749016802633,0.00033982,2622.9,2622.6,10.0]
[1749016802841,2.04402942,2622.8,2622.7,1.601]
[1749016803042,2.04402942,2622.8,2622.7,7.796]
[1749016804505,0.55033982,2622.9,2622.7,9.825]
[1749016804705,0.00033982,2622.9,2622.7,9.825]
[1749016804900,0.00033982,2622.9,2622.8,10.0]
[1749016805144,0.00033982,2622.9,2622.8,3.280009]
[1749016805348,0.00033982,2622.9,2622.8,2.524009]
[1749016805750,0.00033982,2622.9,2622.8,8.719009]
[1749016808654,0.00033982,2622.9,2622.8,11.86902942]
[1749016808847,0.00033982,2622.9,2622.8,21.86902942]
[1749016809714,0.00033982,2622.9,2622.8,28.06302942]
[1749016811267,0.00033982,2622.9,2622.8,26.019]
[1749016812135,0.2,2623.6,2622.9,10.0]
[1749016814965,2.55279669,2623.8,2622.9,10.0]
[1749016814966,0.2,2623.8,2622.9,12.55279669]
[1749016815284,0.2,2623.8,2623.0,10.0]
[1749016815584,0.22,2623.9,2623.0,10.0]
[1749016816101,0.2,2623.8,2623.0,10.0]
[1749016819487,0.02,2623.9,2623.0,10.0]
[1749016819693,0.2,2623.8,2623.0,10.0]
[1749016822885,0.2,2623.8,2623.2,10.0]
[1749016823848,0.2,2623.8,2623.3,10.0]
[1749016824055,0.2,2623.8,2623.4,1.598]
[1749016828920,0.2,2623.8,2623.5,8.221]
[1749016844755,0.2,2623.8,2623.6,1.598]
[1749016848423,0.2,2623.8,2623.7,6.188]
[1749016848625,1.1619,2624.1,2623.7,9.817]
[1749016848819,0.32039631,2624.0,2623.7,9.817]
[1749016849816,0.32039631,2624.0,2623.8,6.188]
[1749016850354,2.36245941,2624.0,2623.7,9.817]
[1749016850549,2.36245941,2624.0,2623.7,16.004]
[1749016850750,0.32039631,2624.0,2623.7,16.004]
[1749016851660,0.32039631,2624.0,2623.4,5.067485]
[1749016853053,0.32039631,2624.0,2623.5,6.187]
[1749016855333,0.32039631,2624.0,2623.6,9.817]
[1749016858037,0.32039631,2624.0,2623.7,1.596]
[1749016859860,0.32039631,2624.0,2623.8,6.186]
[1749016860763,1.0676,2623.8,2623.6,8.221]
[1749016861065,1.6176,2623.7,2623.6,8.221]
[1749016861251,1.98356631,2623.7,2623.6,9.817]
[1749016863244,4.53724645,2623.7,2623.6,9.817]
[1749016864962,1.98356631,2623.7,2623.6,9.817]
[1749016865161,1.6176,2623.7,2623.6,9.817]
[1749016875188,1.6176,2623.7,2623.6,16.003]
[1749016875785,1.6176,2623.7,2623.6,1.597]
[1749016877200,1.6176,2623.7,2623.6,7.783]
[1749016879901,1.6704,2623.9,2623.6,7.783]
[1749016880075,0.55,2623.7,2623.6,7.783]
[1749016880273,5.22,2623.7,2623.6,7.783]
[1749016880679,4.67,2623.7,2623.6,7.783]
[1749016884111,4.67,2623.7,2623.6,16.005]
[1749016886329,0.02,2623.9,2623.6,16.005]
[1749016886543,0.02,2623.9,2623.8,10.0]
[1749016887099,0.02,2623.9,2623.8,7.512527]
[1749016887299,0.02,2623.9,2623.8,5.690684]
[1749016887533,0.00068606,2623.9,2623.8,10.0]
[1749016887733,0.00068606,2623.9,2623.7,2.55368014]
[1749016888115,0.00068606,2623.9,2623.8,10.0]
[1749016888451,0.00068606,2623.9,2623.7,2.55368014]
[1749016888627,0.00068606,2623.9,2623.8,10.0]
[1749016889018,0.00068606,2623.9,2623.8,7.779]
[1749016889736,0.00068606,2623.9,2623.8,7.778]
[1749016891005,0.00068606,2623.9,2623.8,9.816]
[1749016892142,0.00068606,2623.9,2623.8,15.999]
[1749016895822,0.00068606,2623.9,2623.8,25.999]
[1749016896036,0.00068606,2623.9,2623.8,15.999]
[1749016899112,0.00068606,2623.9,2623.8,19.650669]
[1749016901518,0.00068606,2623.9,2623.8,19.587423]
[1749016902558,4.67,2624.1,2623.8,15.999]
[1749016903166,4.67,2624.1,2623.8,18.55268014]
[1749016903318,4.67,2624.1,2623.9,0.39161241]
[1749016903517,4.67,2624.1,2623.8,18.55268014]
[1749016903817,1.0531,2624.4,2623.8,18.55268014]
[1749016906579,1.0531,2624.4,2623.9,10.0]
[1749016906856,0.55,2624.5,2624.0,10.0]
[1749016907061,0.55,2624.5,2624.1,10.0]
[1749016907265,0.55,2624.5,2624.0,10.0]
[1749016907461,0.55,2624.5,2624.1,10.0]
[1749016907669,0.55,2624.5,2624.0,10.0]
[1749016907960,0.55,2624.5,2623.9,13.303437]
[1749016908167,0.55,2624.5,2624.1,10.0]
[1749016908351,0.55,2624.5,2624.0,10.0]
[1749016908562,0.55,2624.5,2624.1,10.0]
[1749016908870,0.55,2624.5,2624.0,2.55368014]
[1749016909029,5.7861,2624.6,2624.0,2.55368014]
[1749016909030,5.7861,2624.6,2624.0,5.56918014]
[1749016909226,5.7861,2624.6,2623.9,2.55368014]
[1749016909635,5.7861,2624.6,2623.9,6.18515552]
[1749016909860,5.7861,2624.6,2624.1,3.63147538]
[1749016910163,5.7861,2624.6,2624.0,10.0]
[1749016910363,5.7861,2624.6,2623.9,12.55368014]
[1749016910735,1.1318,2624.4,2624.0,6.181]
[1749016910937,0.55,2624.3,2624.1,1.593]
[1749016911248,0.55,2624.3,2624.1,7.774]
[1749016913484,0.55,2624.3,2624.2,8.22]
[1749016914979,0.55,2624.3,2624.2,14.4]
[1749016915581,1.1318,2624.4,2624.2,14.4]
[1749016917267,1.76698,2624.4,2624.2,14.4]
[1749016917804,0.55,2624.5,2624.2,14.4]
[1749016923680,4.67,2624.6,2624.2,14.4]
[1749016924518,1.6156,2624.8,2624.2,14.4]
[1749016925530,0.02,2624.9,2624.6,10.0]
[1749016925688,0.02,2624.9,2624.2,14.4]
[1749016925689,0.02,2624.9,2624.8,2.9438]
[1749016925891,0.02,2624.9,2624.8,12.36568014]
[1749016926227,0.02,2624.9,2624.8,22.36568014]
[1749016926601,0.02,2624.9,2624.8,16.56928614]
[1749016926998,0.02,2624.9,2624.8,22.74828614]
[1749016928443,0.02,2624.9,2624.8,18.54468014]
[1749016928647,0.02,2624.9,2624.8,21.01988614]
[1749016936402,0.02,2624.9,2624.8,9.812]
[1749016936611,0.02,2624.9,2624.8,15.989]
[1749016938737,0.02,2624.9,2624.8,15.987]
[1749016940736,0.02,2624.9,2624.8,9.81]
[1749016941239,0.02,2624.9,2624.8,15.987]
[1749016948611,0.02,2624.9,2624.8,16.37861241]
[1749016948811,0.02,2624.9,2624.8,15.987]
[1749016957425,0.02,2624.9,2624.8,9.81]
[1749016957763,0.02,2624.9,2624.8,15.986]
[1749016958371,0.02,2624.9,2624.8,25.986]
[1749016958662,0.02,2624.9,2624.8,28.53968014]
[1749016959667,0.02,2624.9,2624.8,22.56176714]
[1749016959848,0.02,2624.9,2624.8,21.88825714]
[1749016960056,0.02,2624.9,2624.8,18.53968014]
[1749016960243,0.02,2624.9,2624.8,15.985]
[1749016973507,0.02,2624.9,2624.8,25.86842514]
[1749016978726,0.00096186,2624.9,2624.8,25.86842514]
[1749016984441,0.00096186,2624.9,2624.8,28.42210528]
[1749016984738,0.02,2625.9,2624.8,28.42210528]
[1749016984934,0.02,2625.9,2625.6,2.55368014]
[1749016985155,0.02,2625.9,2625.6,20.31668014]
[1749016987693,0.02,2625.9,2625.8,1.92483416]
[1749016987892,0.02,2626.9,2626.8,2.55368014]
[1749016988098,0.02,2626.9,2626.8,15.977]
[1749016988299,0.02,2626.9,2626.8,9.805]
[1749016988609,0.02,2626.9,2626.8,15.977]
[1749016989040,0.02,2626.9,2626.8,15.975]
[1749016989535,0.02,2626.9,2626.8,8.215]
[1749016989845,1.1348,2626.9,2626.8,15.975]
[1749016992055,1.1348,2626.9,2626.8,8.213]
[1749016992283,1.6848,2626.9,2626.8,9.802]
[1749016993361,1.6848,2626.9,2626.8,15.973]
[1749016997379,1.1348,2626.9,2626.8,9.802]
[1749016998240,1.1348,2626.9,2626.8,15.972]
[1749017001066,1.6848,2626.9,2626.8,9.802]
[1749017001273,1.6848,2626.9,2626.8,15.971]
[1749017002748,1.1348,2626.9,2626.8,15.971]
[1749017003500,0.02,2626.9,2626.8,25.035296]
[1749017003654,0.02,2626.9,2626.8,20.923304]
[1749017004796,0.00132469,2626.9,2626.8,20.923304]
[1749017015085,9.825e-05,2626.9,2626.8,20.923304]
[1749017024319,9.825e-05,2626.9,2626.8,23.47198414]
[1749017025254,1.1128,2627.4,2626.8,23.47198414]
[1749017025434,1.1128,2627.4,2627.2,2.55368014]
[1749017026439,1.1432,2627.6,2627.2,2.55368014]
[1749017027066,1.1432,2627.6,2627.4,2.55368014]
[1749017032840,1.1432,2627.6,2627.5,8.209]
[1749017037621,1.1141,2627.9,2627.5,9.795]
[1749017037825,1.1141,2627.9,2627.6,8.71868014]
[1749017040631,0.02,2627.9,2627.8,2.55368014]
[1749017046118,0.02,2627.9,2627.8,12.55368014]
[1749017046421,0.02,2627.9,2627.8,10.65236214]
[1749017049279,0.02,2627.9,2627.8,9.19170214]
[1749017049516,0.02,2627.9,2627.8,8.51616214]
[1749017050321,0.00152915,2627.9,2627.8,8.51616214]
[1749017051901,0.00152915,2627.9,2627.8,6.65260114]
[1749017052260,0.00152915,2627.9,2627.8,14.02325714]
[1749017052712,0.00152915,2627.9,2627.8,10.30268014]
[1749017053130,0.00152915,2627.9,2627.8,1.586]
[1749017053438,0.00152915,2627.9,2627.8,17.749]
[1749017053611,0.00152915,2627.9,2627.8,7.749]
[1749017054621,1.06162915,2627.9,2627.5,8.209]
[1749017054820,1.6101,2627.7,2627.6,7.749]
[1749017055658,1.6101,2627.7,2627.6,1.586]
[1749017055818,1.6101,2627.7,2627.6,7.749]
[1749017056579,1.6101,2627.7,2627.5,8.209]
[1749017056879,0.55,2627.6,2627.5,8.209]
[1749017057076,1.0601,2627.7,2627.5,15.958]
[1749017057279,0.55,2627.6,2627.5,8.209]
[1749017057444,0.55,2627.6,2627.5,9.795]
[1749017057850,0.55,2627.6,2627.5,15.958]
[1749017059469,0.55,2627.6,2627.5,9.794]
[1749017060471,0.55,2627.6,2627.5,15.957]
[1749017060679,1.6141,2627.6,2627.5,9.794]
[1749017060977,6.96751,2627.6,2627.5,9.794]
[1749017061137,6.96751,2627.6,2627.5,15.957]
[1749017069064,4.67,2627.6,2627.5,18.51068014]
[1749017069441,4.67,2627.6,2627.5,15.957]
[1749017070463,5.7771,2627.6,2627.5,15.957]
[1749017071566,6.3271,2627.6,2627.5,15.957]
[1749017074079,6.95981,2627.6,2627.5,9.794]
[1749017074376,6.95981,2627.6,2627.5,15.957]
[1749017074979,6.95981,2627.6,2627.5,9.794]
[1749017075190,6.95981,2627.6,2627.5,15.957]
[1749017076078,6.95981,2627.6,2627.5,15.956]
[1749017077752,6.95981,2627.6,2627.5,9.793]
[1749017077954,6.95981,2627.6,2627.5,15.956]
[1749017078153,6.95981,2627.6,2627.5,1.585]
[1749017079247,6.95981,2627.6,2627.5,7.748]
[1749017080762,0.55,2627.5,2627.4,8.209]
[1749017080968,1.300981,2627.5,2627.4,15.957]
[1749017082954,1.300981,2627.5,2627.4,9.794]
[1749017083156,1.300981,2627.5,2627.4,15.957]
[1749017086903,0.55,2627.5,2627.4,15.957]
[1749017094574,4.67,2627.6,2627.4,15.957]
[1749017096098,0.55,2627.6,2627.4,15.957]
[1749017098311,0.55,2627.6,2627.5,9.795]
[1749017099510,0.55,2627.6,2627.5,15.958]
[1749017103401,0.55,2627.6,2627.5,9.795]
[1749017103620,1.072,2627.6,2627.5,15.957]
[1749017103817,1.06819417,2627.6,2627.5,15.957]
[1749017104836,1.06819417,2627.6,2627.5,9.795]
[1749017105038,1.06819417,2627.6,2627.5,15.957]
[1749017109247,0.54619417,2627.6,2627.5,15.957]
[1749017111147,0.54619417,2627.6,2627.5,8.21]
[1749017111374,0.54619417,2627.6,2627.5,15.957]
[1749017113858,6.29719417,2627.6,2627.5,9.795]
[1749017130329,6.29719417,2627.6,2627.5,1.585]
[1749017132224,7.1822816,2627.6,2627.5,1.585]
[1749017136226,7.1822816,2627.6,2627.5,1.584]
[1749017150801,9.73596174,2627.6,2626.9,8.211]
[1749017151002,3.10368014,2627.4,2627.0,7.745]
[1749017151216,0.55,2627.2,2627.0,7.745]
[1749017153910,0.55,2627.4,2627.0,7.745]
[1749017155297,0.55,2627.2,2627.0,7.745]
[1749017159136,0.55,2627.2,2627.1,1.584]
[1749017161148,5.22,2627.2,2627.1,1.584]
[1749017169454,5.22,2627.2,2627.1,7.745]
[1749017169770,5.742,2627.2,2626.9,8.211]
[1749017169973,5.742,2627.2,2627.1,1.584]
[1749017170269,8.29568014,2627.2,2627.0,1.584]
[1749017170444,4.19098014,2627.1,2627.0,1.584]
[1749017171646,1.6373,2627.0,2626.9,1.584]
[1749017171846,1.6373,2627.0,2625.6,2.55368014]
[1749017171847,0.55,2626.7,2625.6,2.55368014]
[1749017172048,0.55,2626.5,2625.6,2.55368014]
[1749017172446,0.55,2626.3,2625.4,2.55368014]
[1749017172652,0.55,2626.3,2625.5,2.561205]
[1749017172866,0.55,2626.3,2625.6,8.71468014]
[1749017175171,0.55,2626.3,2625.7,9.797]
[1749017175894,0.55,2626.1,2625.7,9.797]
[1749017182110,0.55,2626.1,2625.8,6.162]
[1749017183199,0.55,2626.1,2625.8,8.71568014]
[1749017183870,4.67,2626.2,2625.8,8.71568014]
[1749017185754,4.67,2626.2,2626.0,2.55368014]
[1749017185950,4.67,2626.2,2626.1,3.183788]
[1749017187812,5.24,2626.9,2626.1,3.183788]
[1749017188001,5.24,2626.9,2626.4,2.55368014]
[1749017188201,5.24,2626.9,2626.5,7.744]
[1749017189090,5.24,2626.9,2626.6,10.0]
[1749017189291,0.02,2626.9,2626.6,10.0]
[1749017189911,0.02,2626.9,2626.6,2.55368014]
[1749017190267,0.02,2626.9,2626.6,10.0]
[1749017192780,0.02,2626.9,2626.5,7.744]
[1749017198297,0.02,2626.9,2626.5,10.29768014]
[1749017199332,3.10368014,2626.8,2626.6,7.743]
[1749017199490,0.55,2626.8,2626.7,7.743]
[1749017204837,0.55,2626.8,2626.7,1.583]
[1749017205322,0.55,2626.8,2626.7,7.742]
[1749017205517,5.22,2626.8,2626.7,7.742]
[1749017212260,5.22,2626.8,2626.7,1.583]
[1749017212436,5.85824,2626.8,2626.7,7.742]